[Event "EYTCC U12 Open 2019"]
[Site "Pardubice"]
[Date "2019.07.11"]
[Round "1.14"]
[White "Dias, Savin"]
[Black "Costa, Leonardo"]
[Result "1-0"]
[ECO "C54"]
[WhiteElo "1840"]
[BlackElo "2002"]
[Annotator "NA"]
[PlyCount "121"]
[EventDate "2019.07.11"]
[EventType "swiss"]
[EventCountry "CZE"]
[SourceTitle "playchess.com"]
[Source "ChessBase"]
[SourceQuality "1"]
[WhiteTeam "England"]
[BlackTeam "Germany"]
[WhiteTeamCountry "ENG"]
[BlackTeamCountry "GER"]
[TimeControl "40/5400+30:1800+30"]

1. e4 {[%emt 0:00:00]} e5 {[%emt 0:00:00]} 2. Nf3 {[%emt 0:00:00]} Nc6 {[%emt 0:00:00]} 3. Bc4 {[%emt 0:00:00]} Bc5 {[%emt 0:00:01]} 4. c3 {[%emt 0:00:00]} Nf6 {[%emt 0:00:25]} 5. d3 {[%emt 0:00:00]} d6 {[%emt 0:00:08]} 6. O-O {[%emt 0:00:15]} a6 {[%emt 0:00:34]} 7. Bb3 {[%emt 0:00:05]} O-O {[%emt 0:00:34]} 8. Nbd2 {[%emt 0:00:08]} Ba7 {[%emt 0:04:56]} 9. h3 {[%emt 0:00:45]} Be6 {[%emt 0:05:51]} 10. Bc2 {[%emt 0:05:42]} Qc8 {[%emt 0:01:47]} 11. Nh2 {[%emt 0:12:37]} d5 {[%emt 0:11:34]} 12. exd5 {[%emt 0:04:00]} Bxd5 {[%emt 0:02:26]} 13. Ne4 {[%emt 0:00:42]} Qf5 {[%emt 0:09:35]} 14. Nxf6+ {[%emt 0:04:37]} Qxf6 {[%emt 0:00:12]} 15. Ng4 {[%emt 0:00:29]} Qd6 {[%emt 0:05:37]} 16. Be3 {[%emt 0:04:04]} f5 {[%emt 0:08:09]} 17. Nh2 {[%emt 0:01:09]} Bxe3 {[%emt 0:00:45]} 18. fxe3 {[%emt 0:00:08]} Kh8 {[%emt 0:08:22]} 19. e4 {[%emt 0:02:06]} Be6 {[%emt 0:03:43]} 20. Nf3 {[%emt 0:01:27]} fxe4 {[%emt 0:03:51]} 21. dxe4 {[%emt 0:00:49]} Qc5+ {[%emt 0:04:16]} 22. Kh2 {[%emt 0:02:43]} Qe3 {[%emt 0:01:51]} 23. Qc1 {[%emt 0:02:13]} Qxc1 {[%emt 0:02:10]} 24. Rfxc1 {[%emt 0:00:27]} h6 {[%emt 0:01:57]} 25. b3 {[%emt 0:00:55]} Rad8 {[%emt 0:01:49]} 26. Rd1 {[%emt 0:00:13]} g5 {[%emt 0:00:42]} 27. Rxd8 {[%emt 0:00:31]} Rxd8 {[%emt 0:00:05]} 28. Rd1 {[%emt 0:00:10]} Rf8 {[%emt 0:01:03]} 29. Kg3 {[%emt 0:02:34]} Kg7 {[%emt 0:01:12]} 30. h4 {[%emt 0:02:32]} gxh4+ {[%emt 0:07:41]} 31. Nxh4 {[%emt 0:00:21]} Ne7 {[%emt 0:00:07]} 32. Bd3 {[%emt 0:07:35]} Rf4 {[%emt 0:02:04]} 33. Nf3 {[%emt 0:03:16]} Ng6 {[%emt 0:00:11]} 34. Nxe5 {[%emt 0:01:29]} Rf6 {[%emt 0:01:04]} 35. Nxg6 {[%emt 0:00:26]} Rxg6+ {[%emt 0:00:08]} 36. Kf2 {[%emt 0:00:43]} Rg4 {[%emt 0:02:48]} 37. Rd2 {[%emt 0:00:19]} Kf6 {[%emt 0:01:07]} 38. Ke3 {[%emt 0:02:21]} Ke5 {[%emt 0:01:51]} 39. Rf2 {[%emt 0:01:10]} Rg3+ {[%emt 0:00:26]} 40. Kd2 {[%emt 0:00:28]} c5 {[%emt 0:00:50]} 41. Be2 {[%emt 0:33:09]} b5 {[%emt 0:35:36]} 42. Bf3 {[%emt 0:00:38]} Rg7 {[%emt 0:01:07]} 43. Ke3 {[%emt 0:00:40]} Rd7 {[%emt 0:00:00]} 44. Rd2 {[%emt 0:00:00]} Rxd2 {[%emt 0:00:00]} 45. Kxd2 {[%emt 0:00:00]} b4 {[%emt 0:00:00]} 46. cxb4 {[%emt 0:00:00]} cxb4 {[%emt 0:00:00]} 47. Ke3 {[%emt 0:00:00]} a5 {[%emt 0:00:00]} 48. Bd1 {[%emt 0:00:00]} Bf7 {[%emt 0:00:00]} 49. g3 {[%emt 0:00:00]} Bg8 {[%emt 0:00:00]} 50. Be2 {[%emt 0:00:00]} a4 {[%emt 0:00:00]} 51. Bd1 {[%emt 0:00:00]} Bf7 {[%emt 0:00:00]} 52. bxa4 {[%emt 0:00:00]} Bxa2 {[%emt 0:00:00]} 53. Kd3 {[%emt 0:00:00]} Bb1+ {[%emt 0:00:00]} 54. Kc4 {[%emt 0:00:00]} Bxe4 {[%emt 0:00:00]} 55. Kxb4 {[%emt 0:00:00]} Kd6 {[%emt 0:00:00]} 56. Be2 {[%emt 0:00:00]} Bg2 {[%emt 0:00:00]} 57. a5 {[%emt 0:00:00]} Be4 {[%emt 0:00:00]} 58. a6 {[%emt 0:00:00]} Kc6 {[%emt 0:00:00]} 59. Kc4 {[%emt 0:00:00]} Bg2 {[%emt 0:00:40]} 60. Kd4 {[%emt 0:00:00]} Kd6 {[%emt 0:00:54]} 61. Bd3 {[%emt 0:00:00] Kd5+ Ke4+} 1-0

[Event "EYTCC U12 Open 2019"]
[Site "Pardubice"]
[Date "2019.07.11"]
[Round "1.15"]
[White "Deuer, Marius"]
[Black "Merriman, James"]
[Result "0-1"]
[ECO "C03"]
[WhiteElo "1881"]
[BlackElo "1808"]
[Annotator "NA"]
[PlyCount "98"]
[EventDate "2019.07.11"]
[EventType "swiss"]
[EventCountry "CZE"]
[SourceTitle "playchess.com"]
[Source "ChessBase"]
[SourceQuality "1"]
[WhiteTeam "Germany"]
[BlackTeam "England"]
[WhiteTeamCountry "GER"]
[BlackTeamCountry "ENG"]
[TimeControl "40/5400+30:1800+30"]

1. e4 e6 2. d4 d5 3. Nd2 Be7 4. e5 c5 5. c3 Nc6 6. Bd3 Nh6 7. Ne2 cxd4 8. cxd4 Nf5 9. Nf3 O-O 10. O-O f6 11. exf6 Bxf6 12. Bxf5 exf5 13. b3 g5 14. Bb2 Qd6 15. Qc1 f4 16. Ba3 Nb4 17. Ne5 a5 18. Nd3 Bf5 19. Qd2 Bxd3 20. Bxb4 axb4 21. Qxd3 Bg7 22. Rfc1 {[%emt 1:17:17]} Rae8 23. h3 Re7 24. Rc2 f3 25. gxf3 Ref7 26. f4 gxf4 27. Kh2 Re7 28. Qf3 Qg6 29. Rac1 Qd6 30. Rc8 Rxe2 31. Rxf8+ Kxf8 32. Qg4 Re8 33. Rg1 Qg6 {[%emt 1:46:30]} 34. Qxf4+ Qf6 35. Qg3 Qxd4 36. Qd6+ Kg8 37. Kh1 Qe4+ 38. Rg2 Kh8 39. Qd7 Rg8 40. Qf7 d4 41. f3 Qe5 42. f4 Qf6 43. Qc7 d3 44. Kh2 Qd4 45. Qc1 Rf8 46. f5 Qe5+ 47. Kh1 Qxf5 48. Qc7 Qf1+ 49. Rg1 Qxh3+ 0-1

[Event "EYTCC U12 Open 2019"]
[Site "Pardubice"]
[Date "2019.07.11"]
[Round "1.16"]
[White "Trivedi, Aarnavh"]
[Black "Hagner, Bennet"]
[Result "1-0"]
[ECO "D00"]
[WhiteElo "1669"]
[BlackElo "1831"]
[Annotator "NA"]
[PlyCount "115"]
[EventDate "2019.07.11"]
[EventType "swiss"]
[EventCountry "CZE"]
[SourceTitle "playchess.com"]
[Source "ChessBase"]
[SourceQuality "1"]
[WhiteTeam "England"]
[BlackTeam "Germany"]
[WhiteTeamCountry "ENG"]
[BlackTeamCountry "GER"]
[TimeControl "40/5400+30:1800+30"]

1. d4 {[%emt 0:00:00]} d5 {[%emt 0:00:00]} 2. Bf4 {[%emt 0:00:00]} Nf6 {[%emt 0:00:00]} 3. e3 {[%emt 0:00:04]} c5 {[%emt 0:00:00]} 4. c3 {[%emt 0:00:29]} Nc6 {[%emt 0:00:06]} 5. Nd2 {[%emt 0:00:25]} e6 {[%emt 0:00:28]} 6. Ngf3 {[%emt 0:00:36]} Bd6 {[%emt 0:00:34]} 7. Ne5 {[%emt 0:01:34]} O-O {[%emt 0:02:26]} 8. Bd3 {[%emt 0:02:55]} Qc7 {[%emt 0:04:48]} 9. Ndf3 {[%emt 0:02:32]} b6 {[%emt 0:04:35]} 10. O-O {[%emt 0:10:35]} Bb7 {[%emt 0:01:20]} 11. Bg3 {[%emt 0:03:02]} h6 {[%emt 0:13:39]} 12. Nxc6 {[%emt 0:03:13]} Bxg3 {[%emt 0:03:05]} 13. Nce5 {[%emt 0:02:13]} Bxe5 {[%emt 0:00:35]} 14. Nxe5 {[%emt 0:00:59]} c4 {[%emt 0:04:01]} 15. Bc2 {[%emt 0:01:02]} b5 {[%emt 0:01:28]} 16. f4 {[%emt 0:07:20]} Nd7 {[%emt 0:10:11]} 17. g4 {[%emt 0:06:52]} Nxe5 {[%emt 0:02:47]} 18. dxe5 {[%emt 0:01:44]} g6 {[%emt 0:12:56]} 19. Qd4 {[%emt 0:02:09]} Kh7 {[%emt 0:08:05]} 20. Rf3 {[%emt 0:07:50]} a5 {[%emt 0:04:31]} 21. Kf2 {[%emt 0:03:13]} b4 {[%emt 0:02:35]} 22. f5 {[%emt 0:02:12]} bxc3 {[%emt 0:01:55]} 23. bxc3 {[%emt 0:00:23]} exf5 {[%emt 0:02:25]} 24. gxf5 {[%emt 0:01:11]} Rae8 {[%emt 0:01:51]} 25. Rg1 {[%emt 0:15:19]} Rg8 {[%emt 0:01:57]} 26. fxg6+ {[%emt 0:10:36]} fxg6 {[%emt 0:00:18]} 27. Rf6 {[%emt 0:01:34]} Qxe5 {[%emt 0:05:17]} 28. Qxe5 {[%emt 0:01:41]} Rxe5 {[%emt 0:00:11]} 29. Rf7+ {[%emt 0:05:20]} Rg7 {[%emt 0:00:11]} 30. Rxg7+ {[%emt 0:00:22]} Kxg7 {[%emt 0:00:02]} 31. Rxg6+ {[%emt 0:00:15]} Kf7 {[%emt 0:01:50]} 32. Rxh6 {[%emt 0:00:41]} Rg5 {[%emt 0:01:09]} 33. Rh7+ {[%emt 0:02:05]} Rg7 {[%emt 0:00:03]} 34. Rxg7+ {[%emt 0:00:10]} Kxg7 {[%emt 0:00:04]} 35. Kg3 {[%emt 0:00:06]} Kf6 {[%emt 0:01:23]} 36. Kf4 {[%emt 0:00:17]} Bc6 {[%emt 0:00:23]} 37. h4 {[%emt 0:00:41]} Be8 {[%emt 0:00:09]} 38. e4 {[%emt 0:00:43]} dxe4 {[%emt 0:00:42]} 39. Bxe4 {[%emt 0:00:25]} Bf7 {[%emt 0:01:15]} 40. Bf3 {[%emt 0:00:40]} Bg6 {[%emt 0:03:11]} 41. h5 {[%emt 0:35:28]} Bb1 {[%emt 0:30:19]} 42. a3 {[%emt 0:00:15]} Bd3 {[%emt 0:00:32]} 43. Be4 {[%emt 0:00:30]} Be2 {[%emt 0:00:26]} 44. h6 {[%emt 0:00:22]} Bf1 {[%emt 0:02:28]} 45. h7 {[%emt 0:00:41]} Kg7 {[%emt 0:00:05]} 46. Ke5 {[%emt 0:00:17]} a4 {[%emt 0:01:34]} 47. Kd4 {[%emt 0:00:32]} Be2 {[%emt 0:00:23]} 48. Kc5 {[%emt 0:00:00]} Bd3 {[%emt 0:00:00]} 49. Bc6 {[%emt 0:00:00]} Bc2 {[%emt 0:00:00]} 50. Kxc4 {[%emt 0:00:00]} Kxh7 {[%emt 0:00:00]} 51. Kb4 {[%emt 0:00:00]} Kg6 {[%emt 0:00:00]} 52. Bxa4 {[%emt 0:00:00]} Be4 {[%emt 0:00:00]} 53. Be8+ {[%emt 0:00:00]} Kf6 {[%emt 0:00:00]} 54. Kc5 {[%emt 0:00:00]} Ke7 {[%emt 0:00:00]} 55. Bc6 {[%emt 0:00:00]} Bd3 {[%emt 0:00:00]} 56. c4 {[%emt 0:00:00]} Kd8 {[%emt 0:00:00]} 57. a4 {[%emt 0:00:00]} Kc7 {[%emt 0:00:00]} 58. Bd5 {[%emt 0:00:00]} 1-0

[Event "EYTCC U12 Open 2019"]
[Site "Pardubice"]
[Date "2019.07.11"]
[Round "1.17"]
[White "Day, Tobias"]
[Black "Cohen, Elad"]
[Result "1/2-1/2"]
[ECO "C50"]
[WhiteElo "1826"]
[BlackElo "2002"]
[Annotator "NA"]
[PlyCount "125"]
[EventDate "2019.07.11"]
[EventType "swiss"]
[EventCountry "CZE"]
[SourceTitle "playchess.com"]
[Source "ChessBase"]
[SourceQuality "1"]
[WhiteTeam "Czech Republic"]
[BlackTeam "Israel"]
[WhiteTeamCountry "CZE"]
[BlackTeamCountry "ISR"]
[TimeControl "40/5400+30:1800+30"]

1. e4 {[%emt 0:00:00]} e5 {[%emt 0:00:00]} 2. Nf3 {[%emt 0:00:00]} Nc6 {[%emt 0:00:04]} 3. Bc4 {[%emt 0:00:15]} Nf6 {[%emt 0:00:32]} 4. d3 {[%emt 0:00:27]} Bc5 {[%emt 0:00:38]} 5. c3 {[%emt 0:00:32]} d6 {[%emt 0:00:30]} 6. O-O {[%emt 0:01:42]} h6 {[%emt 0:00:21]} 7. h3 {[%emt 0:01:14]} O-O {[%emt 0:00:25]} 8. Re1 {[%emt 0:00:57]} a5 {[%emt 0:00:53]} 9. Bb3 {[%emt 0:02:38]} Re8 {[%emt 0:05:01]} 10. Qe2 {[%emt 0:08:10]} Be6 {[%emt 0:04:44]} 11. Bc2 {[%emt 0:08:31]} d5 {[%emt 0:04:23]} 12. Nbd2 {[%emt 0:03:17]} Ba7 {[%emt 0:03:39]} 13. Nf1 {[%emt 0:07:14]} dxe4 {[%emt 0:05:43]} 14. dxe4 {[%emt 0:01:33]} Qe7 {[%emt 0:03:48]} 15. Be3 {[%emt 0:07:37]} Bxe3 {[%emt 0:05:44]} 16. Nxe3 {[%emt 0:05:58]} Qc5 {[%emt 0:03:10]} 17. a4 {[%emt 0:07:21]} Qb6 {[%emt 0:16:55]} 18. Qb5 {[%emt 0:08:47]} Red8 {[%emt 0:02:43]} 19. Red1 {[%emt 0:04:46]} Rxd1+ {[%emt 0:07:51]} 20. Rxd1 {[%emt 0:00:59]} Qxb5 {[%emt 0:06:39]} 21. axb5 {[%emt 0:00:03]} Na7 {[%emt 0:00:11]} 22. c4 {[%emt 0:05:13]} Re8 {[%emt 0:05:44]} 23. h4 {[%emt 0:06:19]} Bc8 {[%emt 0:04:16]} 24. Nd2 {[%emt 0:04:58]} Rd8 {[%emt 0:01:58]} 25. Nd5 {[%emt 0:00:31]} Nxd5 {[%emt 0:00:28]} 26. exd5 {[%emt 0:00:24]} Bg4 {[%emt 0:00:57]} 27. f3 {[%emt 0:01:01]} Bh5 {[%emt 0:00:35]} 28. g4 {[%emt 0:00:29]} Bg6 {[%emt 0:00:09]} 29. Bxg6 {[%emt 0:00:50]} fxg6 {[%emt 0:00:02]} 30. Re1 {[%emt 0:00:31]} c6 {[%emt 0:03:18]} 31. bxc6 {[%emt 0:02:46]} bxc6 {[%emt 0:00:12]} 32. Rxe5 {[%emt 0:01:15]} Kf7 {[%emt 0:02:34]} 33. Ne4 {[%emt 0:01:22]} cxd5 {[%emt 0:01:01]} 34. Rxd5 {[%emt 0:01:47]} Rxd5 {[%emt 0:01:12]} 35. cxd5 {[%emt 0:00:01]} Nb5 {[%emt 0:03:33]} 36. Kf2 {[%emt 0:00:57]} Nc7 {[%emt 0:01:01]} 37. Nd6+ {[%emt 0:00:54]} Kf6 {[%emt 0:03:53]} 38. Nc4 {[%emt 0:02:41]} Nxd5 {[%emt 0:00:33]} 39. Nxa5 {[%emt 0:00:22]} Ke5 {[%emt 0:00:46]} 40. Nc6+ {[%emt 0:02:09]} Kd6 {[%emt 0:00:21]} 41. Nd4 {[%emt 0:30:37]} Nf4 {[%emt 0:31:01]} 42. Kg3 {[%emt 0:02:35]} Nd3 {[%emt 0:01:28]} 43. b3 {[%emt 0:00:00]} Ke5 {[%emt 0:00:00]} 44. Ne2 {[%emt 0:00:00]} g5 {[%emt 0:00:00]} 45. hxg5 {[%emt 0:00:00]} hxg5 {[%emt 0:00:00]} 46. Nc3 {[%emt 0:00:00]} Nf4 {[%emt 0:00:00]} 47. Kf2 {[%emt 0:00:00]} Kd4 {[%emt 0:00:00]} 48. Ne2+ {[%emt 0:00:00]} Nxe2 {[%emt 0:00:08]} 49. Kxe2 {[%emt 0:00:00]} Kc3 {[%emt 0:00:09]} 50. Ke3 {[%emt 0:00:00]} Kxb3 {[%emt 0:00:49]} 51. Ke4 {[%emt 0:00:00]} Kc4 {[%emt 0:00:12]} 52. Kf5 {[%emt 0:00:00]} Kd4 {[%emt 0:01:16]} 53. Kxg5 {[%emt 0:00:00]} Ke3 {[%emt 0:00:01]} 54. f4 {[%emt 0:00:00]} Kf3 {[%emt 0:02:19]} 55. f5 {[%emt 0:00:00]} Kg3 {[%emt 0:00:13]} 56. Kh5 {[%emt 0:00:00]} Kf4 {[%emt 0:00:09]} 57. Kh4 {[%emt 0:00:00]} Ke4 {[%emt 0:00:41]} 58. Kg3 {[%emt 0:04:40]} Ke5 {[%emt 0:00:43]} 59. Kh4 {[%emt 0:01:05]} Ke4 {[%emt 0:00:21]} 60. Kg3 {[%emt 0:01:37]} Ke5 {[%emt 0:00:09]} 61. Kf3 {[%emt 0:00:20]} g6 {[%emt 0:00:15]} 62. fxg6 {[%emt 0:00:53]} Kf6 {[%emt 0:00:14]} 63. Kf4 {[%emt 0:00:15]} 1/2-1/2

[Event "EYTCC U12 Open 2019"]
[Site "Pardubice"]
[Date "2019.07.11"]
[Round "1.18"]
[White "Vagman, Roy"]
[Black "Winter, Ondrej"]
[Result "0-1"]
[ECO "B23"]
[WhiteElo "1941"]
[BlackElo "1725"]
[Annotator "NA"]
[PlyCount "120"]
[EventDate "2019.07.11"]
[EventType "swiss"]
[EventCountry "CZE"]
[SourceTitle "playchess.com"]
[Source "ChessBase"]
[SourceQuality "1"]
[WhiteTeam "Israel"]
[BlackTeam "Czech Republic"]
[WhiteTeamCountry "ISR"]
[BlackTeamCountry "CZE"]
[TimeControl "40/5400+30:1800+30"]

1. e4 c5 2. Ne2 Nc6 3. Nbc3 d6 4. g3 g6 5. d4 cxd4 6. Nxd4 Bg7 7. Nde2 Nf6 8. Bg2 Bd7 9. O-O Qc8 10. Re1 O-O 11. Nf4 Ne5 12. h3 Nc4 13. Kh2 Re8 14. b3 {[%emt 0:41:04]} Nb6 {[%emt 0:32:33]} 15. Bd2 {[%emt 0:06:47]} Qc7 {[%emt 0:12:49]} 16. Nce2 {[%emt 0:10:08]} Rac8 {[%emt 0:02:17]} 17. c4 {[%emt 0:00:24]} Bc6 {[%emt 0:12:15]} 18. Nc3 {[%emt 0:01:04]} a5 {[%emt 0:05:00]} 19. Nd3 {[%emt 0:02:40]} Nbd7 {[%emt 0:02:25]} 20. Rc1 {[%emt 0:03:25]} b6 {[%emt 0:01:33]} 21. Qc2 {[%emt 0:11:44]} Nc5 {[%emt 0:04:23]} 22. Nxc5 {[%emt 0:00:58]} bxc5 {[%emt 0:00:49]} 23. Rf1 {[%emt 0:01:18]} Ra8 {[%emt 0:03:08]} 24. f4 {[%emt 0:02:46]} Nd7 {[%emt 0:07:44]} 25. Rce1 {[%emt 0:01:00]} Reb8 {[%emt 0:06:28]} 26. Nd5 {[%emt 0:02:01]} Qd8 {[%emt 0:04:28]} 27. Bc3 {[%emt 0:01:30]} a4 {[%emt 0:02:57]} 28. e5 {[%emt 0:00:29]} axb3 {[%emt 0:00:27]} 29. axb3 {[%emt 0:00:03]} Bxd5 {[%emt 0:01:36]} 30. Bxd5 {[%emt 0:00:15]} Ra3 {[%emt 0:01:10]} 31. exd6 {[%emt 0:03:20]} e6 {[%emt 0:01:25]} 32. Bxg7 {[%emt 0:10:15]} exd5 {[%emt 0:01:23]} 33. f5 {[%emt 0:00:55]} Rbxb3 {[%emt 0:00:55]} 34. fxg6 {[%emt 0:02:29]} Rxg3 {[%emt 0:00:39]} 35. Re8+ {[%emt 0:01:54]} Qxe8 {[%emt 0:00:19]} 36. gxf7+ {[%emt 0:00:11]} Qxf7 {[%emt 0:00:40]} 37. Rxf7 {[%emt 0:00:01]} Rxh3+ {[%emt 0:00:31]} 38. Kg2 {[%emt 0:01:13]} Rag3+ {[%emt 0:00:30]} 39. Kf2 {[%emt 0:00:01]} Rf3+ {[%emt 0:00:31]} 40. Rxf3 {[%emt 0:01:26]} Rh2+ {[%emt 0:00:05]} 41. Kg3 {[%emt 0:30:01]} Rxc2 {[%emt 0:30:07]} 42. Bh6 {[%emt 0:00:37]} Rxc4 {[%emt 0:00:51]} 43. Re3 {[%emt 0:00:00]} Re4 {[%emt 0:00:00]} 44. Ra3 {[%emt 0:00:00]} Kf7 {[%emt 0:00:00]} 45. Ra8 {[%emt 0:00:00]} Ke6 {[%emt 0:00:00]} 46. Bf4 {[%emt 0:00:00]} c4 {[%emt 0:00:00]} 47. Kg4 {[%emt 0:00:00]} Ne5+ {[%emt 0:00:00]} 48. Kg3 {[%emt 0:00:00]} Kxd6 {[%emt 0:00:00]} 49. Rc8 {[%emt 0:00:00]} Kd7 {[%emt 0:00:00]} 50. Ra8 {[%emt 0:00:00]} c3 {[%emt 0:00:00]} 51. Ra3 {[%emt 0:00:00]} Rxf4 {[%emt 0:00:00]} 52. Ra7+ {[%emt 0:00:00]} Ke6 {[%emt 0:00:00]} 53. Rxh7 {[%emt 0:00:16]} Rg4+ {[%emt 0:00:00]} 54. Kh3 {[%emt 0:00:24]} c2 {[%emt 0:00:00]} 55. Rh6+ {[%emt 0:00:47]} Rg6 {[%emt 0:00:00]} 56. Rxg6+ {[%emt 0:04:20]} Nxg6 {[%emt 0:00:00]} 57. Kg3 {[%emt 0:01:53]} c1=Q {[%emt 0:00:00]} 58. Kg2 {[%emt 0:00:04]} Qe3 {[%emt 0:00:00]} 59. Kh1 {[%emt 0:00:16]} Nf4 {[%emt 0:00:00]} 60. Kh2 {[%emt 0:00:40]} Qf2+ {[%emt 0:00:00]} 0-1

[Event "EYTCC U12 Open 2019"]
[Site "Pardubice"]
[Date "2019.07.11"]
[Round "1.19"]
[White "Hladky, Tadeas"]
[Black "Uritsky, Yonathan"]
[Result "1/2-1/2"]
[ECO "C02"]
[WhiteElo "1638"]
[BlackElo "2040"]
[Annotator "NA"]
[PlyCount "120"]
[EventDate "2019.07.11"]
[EventType "swiss"]
[EventCountry "CZE"]
[SourceTitle "playchess.com"]
[Source "ChessBase"]
[SourceQuality "1"]
[WhiteTeam "Czech Republic"]
[BlackTeam "Israel"]
[WhiteTeamCountry "CZE"]
[BlackTeamCountry "ISR"]
[TimeControl "40/5400+30:1800+30"]

1. e4 {[%emt 0:00:00]} c5 {[%emt 0:00:00]} 2. c3 {[%emt 0:00:00]} e6 {[%emt 0:00:38]} 3. d4 {[%emt 0:00:00]} d5 {[%emt 0:00:23]} 4. e5 {[%emt 0:02:09]} Nc6 {[%emt 0:00:34]} 5. Nf3 {[%emt 0:00:06]} Bd7 {[%emt 0:00:54]} 6. Be2 {[%emt 0:04:23]} Rc8 {[%emt 0:00:55]} 7. O-O {[%emt 0:01:10]} Nge7 {[%emt 0:01:51]} 8. b3 {[%emt 0:06:42]} Ng6 {[%emt 0:01:39]} 9. g3 {[%emt 0:04:48]} Be7 {[%emt 0:01:07]} 10. Bb2 {[%emt 0:04:17]} O-O {[%emt 0:01:16]} 11. Na3 {[%emt 0:09:42]} f6 {[%emt 0:02:16]} 12. exf6 {[%emt 0:03:08]} Bxf6 {[%emt 0:00:56]} 13. Qd2 {[%emt 0:07:45]} Qa5 {[%emt 0:03:40]} 14. Rfd1 {[%emt 0:05:41]} Rcd8 {[%emt 0:03:27]} 15. Nc2 {[%emt 0:05:04]} Be8 {[%emt 0:02:34]} 16. dxc5 {[%emt 0:07:10]} Qxc5 {[%emt 0:01:13]} 17. Qe3 {[%emt 0:03:34]} Qxe3 {[%emt 0:04:03]} 18. Nxe3 {[%emt 0:00:20]} Bf7 {[%emt 0:01:32]} 19. Nd4 {[%emt 0:05:56]} e5 {[%emt 0:01:45]} 20. Ndc2 {[%emt 0:03:33]} Be6 {[%emt 0:02:53]} 21. Bg4 {[%emt 0:02:03]} Bxg4 {[%emt 0:01:35]} 22. Nxg4 {[%emt 0:01:42]} Be7 {[%emt 0:00:23]} 23. Ba3 {[%emt 0:03:12]} Bxa3 {[%emt 0:03:34]} 24. Nxa3 {[%emt 0:00:04]} Rfe8 {[%emt 0:02:34]} 25. Nb5 {[%emt 0:01:35]} Re7 {[%emt 0:01:22]} 26. Rd2 {[%emt 0:04:09]} Red7 {[%emt 0:02:20]} 27. Rad1 {[%emt 0:01:16]} a6 {[%emt 0:01:48]} 28. Na3 {[%emt 0:00:14]} b5 {[%emt 0:00:48]} 29. Ne3 {[%emt 0:01:59]} b4 {[%emt 0:03:56]} 30. Nxd5 {[%emt 0:02:27]} Kf7 {[%emt 0:05:10]} 31. Nc4 {[%emt 0:01:01]} a5 {[%emt 0:07:48]} 32. cxb4 {[%emt 0:01:55]} Nd4 {[%emt 0:01:39]} 33. Kg2 {[%emt 0:05:10]} Rxd5 {[%emt 0:01:01]} 34. bxa5 {[%emt 0:00:04]} Ke6 {[%emt 0:07:37]} 35. b4 {[%emt 0:01:52]} Nc2 {[%emt 0:12:54]} 36. Rxd5 {[%emt 0:01:18]} Rxd5 {[%emt 0:00:05]} 37. Rxd5 {[%emt 0:00:07]} Kxd5 {[%emt 0:00:06]} 38. Ne3+ {[%emt 0:00:03]} Nxe3+ {[%emt 0:00:25]} 39. fxe3 {[%emt 0:00:05]} e4 {[%emt 0:02:23]} 40. g4 {[%emt 0:02:52]} Ne5 {[%emt 0:00:39]} 41. g5 {[%emt 0:02:33]} Nf3 {[%emt 0:23:31]} 42. a6 {[%emt 0:03:24]} Kc6 {[%emt 0:00:22]} 43. b5+ {[%emt 0:00:05]} Kb6 {[%emt 0:00:11]} 44. h4 {[%emt 0:00:39]} Nxh4+ {[%emt 0:03:55]} 45. Kg3 {[%emt 0:00:18]} Nf5+ {[%emt 0:02:26]} 46. Kf4 {[%emt 0:00:21]} Nd6 {[%emt 0:03:08]} 47. a4 {[%emt 0:03:34]} h5 {[%emt 0:04:31]} 48. gxh6 {[%emt 0:00:49]} gxh6 {[%emt 0:00:09]} 49. Ke5 {[%emt 0:00:48]} Nc4+ {[%emt 0:01:37]} 50. Kxe4 {[%emt 0:00:12]} h5 {[%emt 0:00:12]} 51. Kf4 {[%emt 0:00:10]} h4 {[%emt 0:00:25]} 52. e4 {[%emt 0:00:07]} h3 {[%emt 0:00:24]} 53. Kg3 {[%emt 0:00:05]} h2 {[%emt 0:00:37]} 54. Kxh2 {[%emt 0:00:04]} Nd2 {[%emt 0:00:06]} 55. Kg3 {[%emt 0:00:38]} Nxe4+ {[%emt 0:00:10]} 56. Kf4 {[%emt 0:00:04]} Nc3 {[%emt 0:00:20]} 57. a5+ {[%emt 0:00:51]} Ka7 {[%emt 0:00:05]} 58. b6+ {[%emt 0:00:44]} Kxa6 {[%emt 0:00:06]} 59. b7 {[%emt 0:00:06]} Kxb7 {[%emt 0:00:07]} 60. a6+ {[%emt 0:00:03]} Kxa6 {[%emt 0:00:07] Ke4} 1/2-1/2

[Event "EYTCC U12 Open 2019"]
[Site "Pardubice"]
[Date "2019.07.11"]
[Round "1.20"]
[White "Tsirilman, Guy"]
[Black "Mohapl, Tomas"]
[Result "1-0"]
[ECO "A06"]
[WhiteElo "1792"]
[BlackElo "1585"]
[Annotator "NA"]
[PlyCount "57"]
[EventDate "2019.07.11"]
[EventType "swiss"]
[EventCountry "CZE"]
[SourceTitle "playchess.com"]
[Source "ChessBase"]
[SourceQuality "1"]
[WhiteTeam "Israel"]
[BlackTeam "Czech Republic"]
[WhiteTeamCountry "ISR"]
[BlackTeamCountry "CZE"]
[TimeControl "40/5400+30:1800+30"]

1. Nf3 d5 2. g3 Nf6 3. Bg2 Bf5 4. O-O e6 5. d3 Bd6 6. Nbd2 O-O 7. Qe1 e5 8. e4 dxe4 9. dxe4 Be6 10. c3 Qe7 11. Qe2 Bd7 12. a4 Bc6 13. b4 b6 14. a5 a6 15. axb6 cxb6 16. Nh4 g6 17. Rd1 b5 18. Nf1 Rd8 19. Bg5 Kg7 20. Ne3 Qe6 21. Qf1 Bc7 22. Bh3 Qe8 23. Nhf5+ gxf5 24. Nxf5+ Kg6 25. Nh4+ Kg7 26. Nf5+ Kg6 27. Rxd8 Bxd8 28. Qc1 Bxe4 29. Bxf6 1-0

[Event "EYTCC U12 Open 2019"]
[Site "Pardubice"]
[Date "2019.07.11"]
[Round "1.21"]
[White "Strybuk, Artsiom I"]
[Black "Fizer, Marek"]
[Result "1-0"]
[ECO "D06"]
[WhiteElo "2193"]
[BlackElo "1624"]
[Annotator "NA"]
[PlyCount "63"]
[EventDate "2019.07.11"]
[EventType "swiss"]
[EventCountry "CZE"]
[SourceTitle "playchess.com"]
[Source "ChessBase"]
[SourceQuality "1"]
[WhiteTeam "Belarus"]
[BlackTeam "Czech Republic"]
[WhiteTeamCountry "BLR"]
[BlackTeamCountry "CZE"]
[TimeControl "40/5400+30:1800+30"]

1. d4 {[%emt 0:00:00]} d5 {[%emt 0:00:00]} 2. c4 {[%emt 0:00:00]} Nf6 {[%emt 0:00:00]} 3. cxd5 {[%emt 0:00:00]} Nxd5 {[%emt 0:00:00]} 4. Nf3 {[%emt 0:00:02]} e6 {[%emt 0:00:25]} 5. e4 {[%emt 0:00:52]} Nb6 {[%emt 0:01:02]} 6. Nc3 {[%emt 0:00:43]} Be7 {[%emt 0:01:10]} 7. Bd3 {[%emt 0:01:17]} O-O {[%emt 0:03:04]} 8. O-O {[%emt 0:02:42]} N8d7 {[%emt 0:02:23]} 9. Bf4 {[%emt 0:05:29]} c5 {[%emt 0:03:49]} 10. d5 {[%emt 0:00:41]} exd5 {[%emt 0:09:29]} 11. exd5 {[%emt 0:00:15]} Bf6 {[%emt 0:02:28]} 12. Re1 {[%emt 0:21:00]} c4 {[%emt 0:01:59]} 13. Bf1 {[%emt 0:00:17]} Bxc3 {[%emt 0:07:21]} 14. bxc3 {[%emt 0:00:13]} Nf6 {[%emt 0:00:49]} 15. d6 {[%emt 0:04:46]} Nfd5 {[%emt 0:05:12]} 16. Qd4 {[%emt 0:04:13]} Nxf4 {[%emt 0:02:38]} 17. Qxf4 {[%emt 0:00:03]} Be6 {[%emt 0:00:27]} 18. Rad1 {[%emt 0:02:20]} Rc8 {[%emt 0:02:03]} 19. Ng5 {[%emt 0:02:44]} Qd7 {[%emt 0:03:32]} 20. Nxe6 {[%emt 0:03:58]} fxe6 {[%emt 0:00:17]} 21. Qe5 {[%emt 0:00:24]} Rf6 {[%emt 0:03:56]} 22. g3 {[%emt 0:01:51]} Qf7 {[%emt 0:05:03]} 23. Bh3 {[%emt 0:01:45]} Re8 {[%emt 0:01:31]} 24. Rd2 {[%emt 0:01:49]} Nd7 {[%emt 0:02:33]} 25. Qb5 {[%emt 0:01:31]} Rh6 {[%emt 0:02:41]} 26. Bg4 {[%emt 0:02:57]} b6 {[%emt 0:01:47]} 27. Qxc4 {[%emt 0:02:51]} Nc5 {[%emt 0:04:32]} 28. a4 {[%emt 0:06:16]} Qd7 {[%emt 0:05:29]} 29. a5 {[%emt 0:02:02]} Nb7 {[%emt 0:02:21]} 30. Qc7 {[%emt 0:01:29]} Qxc7 {[%emt 0:03:04]} 31. dxc7 {[%emt 0:00:09]} bxa5 {[%emt 0:01:47]} 32. Rb1 {[%emt 0:01:48]} 1-0